bitfinex/quotes_SOLUSD_20250508
["timestamp","ask_amount","ask_price","bid_price","bid_amount"]
[1746690348579,11.4552585,151.92,151.89,18.64964886]
[1746690349570,6.5811122,151.95,151.89,36.68839798]
[1746690349879,11.4552585,151.94,151.89,36.68839798]
[1746690350063,11.4552585,151.94,151.9,11.4552585]
[1746690350668,18.0363707,151.95,151.9,11.4552585]
[1746690351053,11.4552585,151.94,151.89,18.64964886]
[1746690351255,11.4552585,151.94,151.89,30.10490736]
[1746690351651,18.0372214,151.94,151.89,30.10490736]
[1746690352176,11.4552585,151.93,151.89,18.64964886]
[1746690353383,11.4552585,151.93,151.89,30.10490736]
[1746690353785,6.58241179,151.92,151.89,18.64964886]
[1746690354481,18.03767029,151.92,151.89,18.64964886]
[1746690354687,11.4552585,151.9,151.88,25.72]
[1746690354897,11.4552585,151.91,151.88,25.72]
[1746690355067,6.58241179,151.92,151.88,25.72]
[1746690355068,18.03767029,151.92,151.88,25.72]
[1746690355585,11.4552585,151.91,151.88,25.72]
[1746690355778,18.03897039,151.89,151.88,25.72]
[1746690356783,11.4552585,151.91,151.88,44.36964886]
[1746690357465,23.03459358,151.95,151.88,25.72]
[1746690357672,11.4552585,151.89,151.88,25.72]
[1746690359790,16.45348138,151.95,151.88,44.36964886]
[1746690360090,11.4552585,151.91,151.88,44.36964886]
[1746690360461,23.03459358,151.95,151.88,44.36964886]
[1746690360660,11.4552585,151.9,151.88,44.36964886]
[1746690360866,11.4552585,151.9,151.88,25.72]
[1746690363168,18.03867305,151.9,151.88,25.72]
[1746690363361,6.58197854,151.93,151.88,25.72]
[1746690363691,11.4552585,151.91,151.88,25.72]
[1746690364577,18.03814381,151.91,151.88,25.72]
[1746690364988,11.4552585,151.9,151.88,25.72]
[1746690365877,18.03814381,151.91,151.88,25.72]
[1746690368491,6.58197854,151.93,151.9,11.4552585]
[1746690368686,6.58197854,151.93,151.91,11.4552585]
[1746690369080,143.18172563,151.94,151.92,11.4552585]
[1746690369280,6.58172563,151.94,151.92,11.4552585]
[1746690370399,6.58067912,151.96,151.93,11.4552585]
[1746690371103,6.58067912,151.96,151.92,11.4552585]
[1746690371397,6.58067912,151.96,151.94,11.4552585]
[1746690372100,16.44829948,152.0,151.94,11.4552585]
[1746690372101,10.2852837,152.08,151.96,50.0]
[1746690372300,11.4552585,152.04,151.97,18.64964886]
[1746690372500,6.57764914,152.03,151.99,11.4552585]
[1746690372678,18.03290764,152.03,151.98,11.4552585]
[1746690372996,18.03290764,152.03,151.97,18.64964886]
[1746690373195,18.03290764,152.03,151.98,11.4552585]
[1746690373402,26.72481321,152.08,152.01,11.4552585]
[1746690373707,6.57591898,152.07,152.03,11.4552585]
[1746690373891,18.03117748,152.07,152.02,36.4152585]
[1746690374397,16.86088963,152.08,152.03,11.4552585]
[1746690374603,6.57560593,152.08,152.04,11.4552585]
[1746690374979,8.1090951,152.09,152.04,11.4552585]
[1746690375183,6.5750951,152.09,152.05,11.4552585]
[1746690375404,18.0303536,152.09,152.05,11.4552585]
[1746690375702,18.0303536,152.09,152.04,11.4552585]
[1746690376012,11.4552585,152.07,152.02,36.4152585]
[1746690376310,6.5750951,152.09,152.02,36.4152585]
[1746690376482,18.03175101,152.06,152.02,36.4152585]
[1746690377178,6.57649251,152.06,152.02,36.4152585]
[1746690377900,6.57649251,152.06,152.03,18.64964886]
[1746690378594,49.01297196,152.09,152.03,18.64964886]
[1746690378782,11.4552585,152.07,152.03,18.64964886]
[1746690379805,11.4552585,152.06,152.02,24.96]
[1746690379984,11.4552585,152.06,152.02,36.4152585]
[1746690380183,11.4552585,152.06,152.02,24.96]
[1746690381004,18.03180567,152.06,152.02,24.96]
[1746690381784,11.4552585,152.05,152.02,24.96]
[1746690382607,6.57654717,152.06,152.02,36.4152585]
[1746690382806,18.03180567,152.06,152.02,36.4152585]
[1746690383013,18.03180567,152.06,152.02,24.96]
[1746690383406,11.4552585,152.05,152.02,24.96]
[1746690385910,18.03205314,152.05,152.02,24.96]
[1746690386126,11.4552585,152.04,152.02,24.96]
[1746690386338,11.4552585,152.03,152.02,24.96]
[1746690386626,18.03290764,152.03,152.02,24.96]
[1746690388010,6.57764914,152.03,152.02,24.96]
[1746690388324,18.03290764,152.03,152.02,24.96]
[1746690389425,16.44206102,152.05,152.02,24.96]
[1746690389606,11.4552585,152.03,152.02,24.96]
[1746690390113,16.44206102,152.05,152.02,24.96]
[1746690390499,11.4552585,152.04,152.02,24.96]
[1746690391021,11.4552585,152.03,152.02,24.96]
[1746690391519,18.03290764,152.03,152.02,24.96]
[1746690392308,6.57764914,152.03,152.02,24.96]
[1746690392497,18.03290764,152.03,152.02,24.96]
[1746690393098,23.01884497,152.05,152.02,24.96]
[1746690393522,11.4552585,152.03,152.02,24.96]
[1746690394620,18.03290764,152.03,152.02,24.96]
[1746690394834,18.03290764,152.03,151.91,24.56]
[1746690394835,144.6189,152.02,151.91,24.56]
[1746690395123,11.4552585,151.95,151.91,24.56]
[1746690395323,11.4552585,151.96,151.91,36.0152585]
[1746690395625,11.4552585,151.95,151.91,24.56]
[1746690395805,11.4552585,151.95,151.92,18.64964886]
[1746690395806,18.03654249,151.95,151.92,18.64964886]
[1746690396307,6.58128399,151.95,151.92,18.64964886]
[1746690397127,6.58128399,151.95,151.93,24.56]
[1746690398099,6.58054549,151.97,151.93,24.56]
[1746690398306,18.03580399,151.97,151.93,24.56]
[1746690398908,6.58054549,151.97,151.93,36.0152585]
[1746690399106,18.03580399,151.97,151.93,24.56]
[1746690401811,18.03580399,151.97,151.94,18.64964886]
[1746690402005,6.58054549,151.97,151.94,18.64964886]
[1746690404538,18.03580399,151.97,151.94,18.64964886]
[1746690404828,6.58054549,151.97,151.94,18.64964886]
[1746690405512,18.03580399,151.97,151.94,18.64964886]
[1746690405920,18.03580399,151.97,151.93,24.56]
[1746690406111,11.4552585,151.96,151.93,24.56]
[1746690408012,18.03628356,151.96,151.93,24.56]
[1746690409461,11.4552585,151.94,151.93,24.56]
[1746690409747,11.4552585,151.94,151.88,18.64964886]
[1746690409911,11.4552585,151.91,151.88,18.64964886]
[1746690410111,11.4552585,151.92,151.88,18.64964886]
[1746690411747,6.5828451,151.91,151.88,18.64964886]
[1746690413210,49.03389271,151.95,151.88,18.64964886]
[1746690413438,11.4552585,151.92,151.88,18.64964886]
[1746690413945,11.4552585,151.91,151.88,18.64964886]
[1746690414314,18.03821432,151.91,151.88,18.64964886]
[1746690414516,6.58295582,151.91,151.88,18.64964886]
[1746690414826,18.03821432,151.91,151.88,18.64964886]
[1746690415229,6.58295582,151.91,151.88,18.64964886]
[1746690415422,6.58230277,151.93,151.9,11.4552585]
[1746690415621,6.58230277,151.93,151.88,18.64964886]
[1746690415835,6.58230277,151.93,151.9,11.4552585]
[1746690417742,6.58154534,151.94,151.91,18.64964886]
[1746690418055,6.58154534,151.94,151.91,11.4552585]
[1746690418638,1.5326,151.96,151.91,11.4552585]
[1746690418843,6.58114786,151.95,151.92,11.4552585]
[1746690419360,6.58114786,151.95,151.92,36.0152585]
[1746690420056,6.58067912,151.96,151.92,36.0152585]
[1746690420653,18.03593762,151.96,151.92,24.56]
[1746690421157,6.58067912,151.96,151.92,36.0152585]
[1746690421545,18.03593762,151.96,151.92,36.0152585]
[1746690422059,18.03593762,151.96,151.92,24.56]
[1746690424342,11.4552585,151.95,151.92,24.56]
[1746690424545,11.4552585,151.93,151.92,24.56]
[1746690425963,18.03723704,151.93,151.92,24.56]
[1746690430367,34.49218339,151.93,151.87,24.22]
[1746690430545,11.4552585,151.9,151.87,24.22]
[1746690430865,11.4552585,151.88,151.87,24.22]
[1746690432468,18.03940387,151.88,151.87,24.22]
[1746690437867,6.58414537,151.88,151.87,24.22]
[1746690442068,11.4552585,151.9,151.87,24.22]
[1746690442379,11.4552585,151.89,151.87,24.22]
[1746690443776,6.58414537,151.88,151.87,24.22]
[1746690443962,136.6,151.92,151.87,24.22]
[1746690444159,23.03995786,151.91,151.87,24.22]
[1746690444683,23.03995786,151.91,151.88,11.4552585]
[1746690445560,23.03995786,151.91,151.87,24.22]
[1746690445880,23.03995786,151.91,151.87,35.6752585]
[1746690446587,34.49521636,151.91,151.87,24.22]
[1746690446756,11.4552585,151.9,151.87,24.22]
[1746690447063,34.49521636,151.91,151.87,24.22]
[1746690448483,11.4552585,151.9,151.87,24.22]
[1746690448687,11.4552585,151.89,151.87,24.22]
[1746690448887,23.03995786,151.91,151.87,24.22]
[1746690449196,11.4552585,151.89,151.87,24.22]
[1746690449372,148.0552585,151.88,151.87,24.22]
[1746690449688,148.0552585,151.88,151.83,11.4552585]
[1746690449991,136.6,151.88,151.85,11.4552585]
[1746690450163,136.6,151.88,151.86,11.4552585]
[1746690450558,6.58457891,151.87,151.86,11.4552585]
[1746690451687,143.18430509,151.88,151.86,11.4552585]
[1746690451860,143.18430509,151.88,151.87,11.4552585]
[1746690452061,6.58430509,151.88,151.83,30.10490736]
[1746690452261,6.58430509,151.88,151.87,11.4552585]
[1746690452665,6.58327847,151.9,151.87,11.4552585]
[1746690453479,6.58327847,151.9,151.83,18.64964886]
[1746690453779,6.58327847,151.9,151.89,11.4552585]
[1746690454858,23.03995786,151.91,151.88,11.4552585]
[1746690457709,23.03995786,151.91,151.87,11.4552585]
[1746690460400,23.03995786,151.91,151.86,35.6752585]
[1746690460702,34.49521636,151.91,151.86,35.6752585]
[1746690461190,34.49521636,151.91,151.86,24.22]
[1746690462807,11.4552585,151.9,151.86,24.22]
[1746690463206,11.4552585,151.89,151.86,24.22]
[1746690464795,6.58414537,151.88,151.86,24.22]
[1746690469319,23.03995786,151.91,151.86,24.22]
[1746690469505,11.4552585,151.89,151.86,24.22]
[1746690470402,6.58414537,151.88,151.86,24.22]
[1746690473432,11.4552585,151.87,151.86,24.22]
[1746690474137,11.4552585,151.87,151.81,42.52964886]
[1746690474360,11.4552585,151.82,151.81,23.88]
[1746690475017,6.58642059,151.83,151.81,23.88]
[1746690475217,11.4552585,151.82,151.81,23.88]
[1746690475541,6.58642059,151.83,151.81,23.88]
[1746690475717,11.4552585,151.82,151.81,23.88]
[1746690477035,18.04167909,151.83,151.81,23.88]
[1746690479842,6.58642059,151.83,151.81,23.88]
[1746690480143,11.4552585,151.82,151.81,23.88]
[1746690480341,6.58642059,151.83,151.81,23.88]
[1746690480716,18.04167909,151.83,151.81,23.88]
[1746690482148,11.4552585,151.82,151.81,23.88]
[1746690484127,18.04200596,151.82,151.81,23.88]
[1746690485045,6.58674746,151.82,151.81,23.88]
[1746690485249,18.04200596,151.82,151.81,23.88]
[1746690486549,34.50887462,151.82,151.77,246.68]
[1746690486755,11.4552585,151.79,151.77,246.68]
[1746690487526,11.4552585,151.78,151.77,246.68]
[1746690488149,11.4552585,151.78,151.77,245.68]
[1746690488340,18.04374183,151.78,151.77,245.68]
[1746690490464,6.58761528,151.8,151.77,245.68]
[1746690490632,1.5727,151.84,151.78,11.4552585]
[1746690490952,18.04124839,151.84,151.79,30.10490736]
[1746690491152,18.04124839,151.84,151.79,18.64964886]
[1746690491961,6.58598989,151.84,151.79,18.04328789]
[1746690492161,18.04085776,151.85,151.79,18.04328789]
[1746690492961,11.4552585,151.84,151.79,18.04328789]
[1746690493364,18.04122453,151.84,151.79,18.04328789]
[1746690493676,18.04122453,151.84,151.79,6.58802939]
[1746690494145,18.04122453,151.84,151.79,18.04328789]
[1746690494346,6.58596603,151.84,151.79,18.04328789]
[1746690494655,136.6,151.86,151.83,11.4552585]
[1746690494843,136.6,151.86,151.83,23.56]
[1746690495043,143.18516203,151.86,151.83,35.0152585]
[1746690495670,143.18516203,151.86,151.83,23.56]
[1746690495866,143.18516203,151.86,151.83,35.0152585]
[1746690496887,154.64042053,151.86,151.83,23.56]
[1746690497047,11.4552585,151.85,151.83,23.56]
[1746690497770,6.58587987,151.84,151.83,23.56]
[1746690499460,11.4552585,151.84,151.83,23.56]
[1746690500663,6.58544616,151.85,151.83,23.56]
[1746690500865,11.4552585,151.84,151.83,23.56]
[1746690501572,18.04113837,151.84,151.83,23.56]
[1746690501779,136.6,151.83,151.78,23.56]
[1746690502277,11.4552585,151.81,151.78,23.56]
[1746690503064,11.4552585,151.8,151.78,23.56]
[1746690503470,18.04330777,151.79,151.78,23.56]
[1746690504966,18.04330777,151.79,151.72,38.32949528]
[1746690505172,11.4552585,151.77,151.73,42.20964886]
[1746690505788,18.04430358,151.77,151.73,42.20964886]
[1746690509392,11.4552585,151.76,151.73,23.56]
[1746690510596,6.58904508,151.77,151.73,23.56]
[1746690510896,18.04475603,151.76,151.73,23.56]
[1746690511913,11.4552585,151.75,151.73,23.56]
[1746690512090,6.58949753,151.76,151.73,23.56]
[1746690512392,11.4552585,151.75,151.73,23.56]
[1746690512781,143.18907952,151.77,151.73,23.56]
[1746690513096,143.18907952,151.77,151.73,35.0152585]
[1746690513991,143.18907952,151.77,151.74,11.4552585]
[1746690514168,136.6,151.77,151.74,11.4552585]
[1746690515095,6.5871289,151.82,151.76,11.4552585]
[1746690515293,6.5871289,151.82,151.79,11.4552585]
[1746690516811,6.58631364,151.83,151.79,11.4552585]
[1746690517107,18.04157214,151.83,151.79,11.4552585]
[1746690517611,18.04157214,151.83,151.77,18.64964886]
[1746690517807,18.04157214,151.83,151.78,11.4552585]
[1746690519383,11.4552585,151.82,151.78,11.4552585]
[1746690519585,11.4552585,151.82,151.77,18.64964886]
[1746690519809,11.4552585,151.82,151.78,11.4552585]
[1746690520118,18.04238882,151.82,151.78,11.4552585]
[1746690521596,18.04238882,151.82,151.77,30.10490736]
[1746690522493,18.04238882,151.82,151.77,11.4552585]
[1746690522707,11.4552585,151.81,151.76,30.10490736]
[1746690524417,18.04257058,151.81,151.76,36.69424043]
[1746690524788,18.04257058,151.81,151.77,11.4552585]
[1746690524983,18.0421624,151.82,151.77,11.4552585]
[1746690525602,18.0421624,151.82,151.78,11.4552585]
[1746690525820,18.0421624,151.82,151.76,25.23898193]
[1746690526022,18.0421624,151.82,151.77,11.4552585]
[1746690526194,11.4552585,151.81,151.77,11.4552585]
[1746690527116,11.4552585,151.82,151.77,11.4552585]
[1746690527308,136.6,151.84,151.81,11.4552585]
[1746690527502,6.58600216,151.84,151.81,11.4552585]
[1746690527811,18.04126066,151.84,151.8,23.22]
[1746690528019,11.4552585,151.83,151.8,23.22]
[1746690529509,6.58674746,151.82,151.8,23.22]
[1746690531434,11.4552585,151.82,151.8,23.22]
[1746690533830,18.04202184,151.82,151.8,23.22]
[1746690534633,18.04202184,151.82,151.78,34.6752585]
[1746690535331,18.04202184,151.82,151.78,23.22]
[1746690539911,6.58676334,151.82,151.78,23.22]
[1746690540133,18.04202184,151.82,151.78,23.22]
[1746690540745,11.4552585,151.81,151.78,23.22]
[1746690544327,18.04202184,151.82,151.78,23.22]
[1746690546842,11.4552585,151.8,151.78,23.22]
[1746690547031,6.58676334,151.82,151.78,23.22]
[1746690547229,11.4552585,151.79,151.78,23.22]
[1746690548243,6.58804927,151.79,151.78,23.22]
[1746690548544,18.04330777,151.79,151.78,23.22]
[1746690549851,6.58674746,151.82,151.78,23.22]
[1746690550239,11.4552585,151.81,151.78,23.22]
[1746690553051,11.4552585,151.82,151.78,23.22]
[1746690554842,11.4552585,151.81,151.78,23.22]
[1746690555144,11.4552585,151.8,151.78,23.22]
[1746690555353,11.4552585,151.79,151.78,23.22]
[1746690556048,6.58646282,151.83,151.78,23.22]
[1746690556435,11.4552585,151.8,151.78,23.22]
[1746690557952,11.4552585,151.79,151.78,23.22]
[1746690559850,6.58737566,151.81,151.78,23.22]
[1746690560058,11.4552585,151.79,151.78,23.22]
[1746690560752,11.4552585,151.8,151.78,23.22]
[1746690561441,11.4552585,151.81,151.78,23.22]
[1746690561841,18.04245927,151.81,151.78,23.22]
[1746690564155,6.58720077,151.81,151.78,23.22]
[1746690564965,18.04245927,151.81,151.78,23.22]
[1746690565661,11.4552585,151.82,151.78,23.22]
[1746690567366,18.0424156,151.82,151.78,23.22]
[1746690568566,6.58631364,151.83,151.78,23.22]
[1746690568741,11.4552585,151.82,151.78,23.22]
[1746690568942,11.4552585,151.81,151.78,23.22]
[1746690569163,11.4552585,151.82,151.78,23.22]
[1746690570455,6.58718134,151.81,151.78,23.22]
[1746690571466,6.58631364,151.83,151.8,11.4552585]
[1746690571659,143.18588493,151.84,151.82,11.4552585]
[1746690572765,6.58588493,151.84,151.82,11.4552585]
[1746690573066,6.58588493,151.84,151.83,11.4552585]
[1746690573957,166.17564098,151.87,151.83,11.4552585]
[1746690573958,6.58501251,151.86,151.83,11.4552585]
[1746690574145,6.58501251,151.86,151.82,11.4552585]
[1746690575568,11.4552585,151.85,151.8,11.4552585]
[1746690575861,11.4552585,151.84,151.78,23.22]
[1746690576070,11.4552585,151.83,151.78,34.6752585]
[1746690577772,6.58674746,151.82,151.78,34.6752585]
[1746690578064,18.04200596,151.82,151.78,23.22]
[1746690578443,11.4552585,151.81,151.78,23.22]
[1746690580469,6.58761528,151.8,151.78,23.22]
[1746690582776,136.6,151.84,151.78,23.22]
[1746690582977,136.6,151.84,151.8,11.4552585]
[1746690583279,6.58631364,151.83,151.8,11.4552585]
[1746690586877,6.58631364,151.83,151.79,11.4552585]
[1746690588170,6.58631364,151.83,151.78,23.22]
[1746690588483,6.58631364,151.83,151.78,34.6752585]
[1746690589864,6.58631364,151.83,151.79,11.4552585]
[1746690592180,6.58631364,151.83,151.8,22.56]
[1746690598987,18.04157214,151.83,151.8,22.56]
[1746690601592,11.4552585,151.82,151.8,22.56]
[1746690602075,6.58631364,151.83,151.8,22.56]
[1746690602278,11.4552585,151.82,151.8,22.56]
[1746690602795,6.58631364,151.83,151.8,22.56]
[1746690603178,18.04157214,151.83,151.8,22.56]
[1746690603701,11.4552585,151.81,151.8,22.56]
[1746690604798,18.04243984,151.81,151.8,22.56]
[1746690606523,34.5103932,151.81,151.76,22.56]
[1746690606700,11.4552585,151.77,151.76,22.56]
[1746690608320,18.04417594,151.77,151.76,22.56]
[1746690608627,11.4552585,151.77,151.76,22.56]
[1746690609541,18.04417594,151.77,151.76,22.56]
[1746690609713,11.4552585,151.77,151.76,22.56]
[1746690609924,18.04417594,151.77,151.76,22.56]
[1746690610620,11.4552585,151.78,151.76,22.56]
[1746690610827,18.0433591,151.79,151.76,22.56]
[1746690611699,6.5881006,151.79,151.76,22.56]
[1746690613107,6.58780031,151.8,151.77,18.64964886]
[1746690614237,6.58780031,151.8,151.76,22.56]
[1746690614451,18.04305881,151.8,151.77,18.64964886]
[1746690614752,11.4552585,151.79,151.77,18.64964886]
[1746690614921,18.04305881,151.8,151.77,18.64964886]
[1746690616237,18.04305881,151.8,151.78,22.24]
[1746690616430,11.4552585,151.79,151.78,22.24]
[1746690616631,18.04330777,151.79,151.78,22.24]
[1746690620544,6.58804927,151.79,151.78,22.24]
[1746690620742,18.04330777,151.79,151.78,22.24]
[1746690624245,6.58804927,151.79,151.78,22.24]
[1746690624430,18.04330777,151.79,151.78,22.24]
[1746690625733,18.04330777,151.79,151.76,5.0]
[1746690626640,6.58804927,151.79,151.76,5.0]
[1746690628150,18.04243984,151.81,151.76,5.0]
[1746690630659,6.58804927,151.79,151.76,5.0]
[1746690632737,11.4552585,151.8,151.76,5.0]
[1746690633760,6.58804927,151.79,151.76,5.0]
[1746690634939,6.58804927,151.79,151.76,16.4552585]
[1746690635641,6.58759223,151.81,151.78,11.4552585]
[1746690635859,6.58759223,151.81,151.8,11.4552585]
[1746690637782,143.18704526,151.82,151.8,11.4552585]
[1746690637975,143.18704526,151.82,151.81,11.4552585]
[1746690638474,143.18704526,151.82,151.8,11.4552585]
[1746690640189,143.18704526,151.82,151.79,11.4552585]
[1746690640885,143.18704526,151.82,151.78,33.3752585]
[1746690643479,143.18704526,151.82,151.79,11.4552585]
[1746690645689,143.18704526,151.82,151.78,33.3752585]
[1746690646800,154.64230376,151.82,151.78,33.3752585]
[1746690647114,154.64230376,151.82,151.78,21.92]
[1746690647287,154.64230376,151.82,151.78,33.3752585]
[1746690649105,154.64230376,151.82,151.78,21.92]
[1746690654429,143.18704526,151.82,151.78,21.92]
[1746690654607,143.18704526,151.82,151.8,11.4552585]
[1746690654791,143.18674746,151.82,151.8,11.4552585]
[1746690656012,136.6,151.82,151.81,11.4552585]
[1746690656221,18.1181105,151.86,151.81,11.4552585]
[1746690656397,29.573369,151.86,151.81,11.4552585]
[1746690656606,6.58544616,151.85,151.81,11.4552585]
[1746690657195,6.58544616,151.85,151.82,11.4552585]
[1746690658603,6.58544616,151.85,151.81,11.4552585]
[1746690662203,6.58544616,151.85,151.82,11.4552585]
[1746690664421,6.58457891,151.87,151.84,11.4552585]
[1746690664624,6.58457891,151.87,151.85,21.92]
[1746690665929,18.03983741,151.87,151.85,21.92]
[1746690667635,6.58457891,151.87,151.85,21.92]
[1746690667837,18.03983741,151.87,151.85,21.92]
[1746690671741,6.58457891,151.87,151.85,21.92]
[1746690672336,18.03983741,151.87,151.85,21.92]
[1746690672728,6.58457891,151.87,151.85,21.92]
[1746690672932,18.03983741,151.87,151.85,21.92]
[1746690673751,13.91693689,151.87,151.85,21.92]
[1746690674338,7.33235798,151.86,151.85,21.92]
[1746690674841,143.93235798,151.86,151.85,21.92]
[1746690675023,143.93235798,151.86,151.8,21.6]
[1746690675221,7.33235798,151.83,151.8,21.6]
[1746690675430,136.6,151.86,151.8,21.6]
[1746690675725,7.33235798,151.83,151.8,21.6]
[1746690676320,7.33235798,151.81,151.8,21.6]
[1746690677516,23.04906156,151.85,151.8,21.6]
[1746690677740,11.46911523,151.81,151.8,21.6]
[1746690678445,18.05629657,151.81,151.8,21.6]
[1746690680978,18.05629657,151.81,151.76,5.0]
[1746690681261,11.46911523,151.77,151.76,5.0]
[1746690681660,6.58718134,151.81,151.75,21.6]
[1746690681858,11.46911523,151.78,151.75,21.6]
[1746690683373,6.58718134,151.81,151.75,21.6]
[1746690683659,18.05765544,151.78,151.75,21.6]
[1746690684860,6.58718134,151.81,151.76,11.46911523]
[1746690685066,18.05629657,151.81,151.76,11.46911523]
[1746690686055,18.05629657,151.81,151.77,11.46911523]
[1746690686866,6.58718134,151.81,151.77,11.46911523]
[1746690688458,4.92047651,151.8,151.77,8.17299029]
[1746690688664,4.92047651,151.8,151.77,11.46911523]
[1746690689049,11.50815114,151.8,151.77,11.46911523]
[1746690689570,4.92047651,151.79,151.77,11.46911523]
[1746690690647,4.92047651,151.78,151.77,11.46911523]
[1746690691457,4.92047651,151.78,151.75,21.6]
[1746690691759,4.92047651,151.78,151.77,11.46911523]
[1746690693567,4.92047651,151.78,151.75,21.6]
[1746690693774,4.92047651,151.78,151.76,11.46911523]
[1746690693961,4.92047651,151.77,151.76,11.46911523]
[1746690694149,4.92047651,151.77,151.75,21.6]
[1746690694466,4.92047651,151.77,151.75,33.06911523]
[1746690695565,4.92047651,151.76,151.75,33.06911523]
[1746690696074,4.92047651,151.76,151.75,21.6]
[1746690696373,4.92047651,151.76,151.75,33.06911523]
[1746690697267,4.92047651,151.76,151.75,21.6]
[1746690697475,4.92047651,151.76,151.75,33.06911523]
[1746690698174,4.92047651,151.76,151.75,21.6]
[1746690698356,11.50982811,151.76,151.75,21.6]
[1746690698756,11.50982811,151.76,151.75,16.65523205]
[1746690699763,11.50982811,151.76,151.75,10.06220812]
[1746690702476,11.50982811,151.76,151.75,21.53132335]
[1746690702477,4.92047651,151.76,151.75,21.53132335]
[1746690703987,4.92047651,151.76,151.75,18.23491341]
[1746690705381,4.92047651,151.76,151.75,24.82469924]
[1746690706177,4.92047651,151.76,151.75,18.23491341]
[1746690708382,4.92047651,151.76,151.75,43.4743481]
[1746690709963,4.92047651,151.76,151.75,32.00523287]
[1746690710166,4.92047651,151.76,151.75,43.4743481]
[1746690710882,4.92047651,151.76,151.75,32.00523287]
[1746690711089,4.92047651,151.76,151.75,43.4743481]
[1746690711560,4.92047651,151.76,151.75,69.4743481]
[1746690711767,4.92047651,151.76,151.75,119.4743481]
[1746690713969,4.92047651,151.76,151.75,366.3143481]
[1746690714763,4.92047651,151.76,151.75,361.37087833]
[1746690719479,4.92047651,151.76,151.75,379.39513446]
[1746690723889,4.92047651,151.76,151.75,375.26178295]
[1746690724188,4.92047651,151.76,151.75,128.42178295]
[1746690726391,6.58674819,151.82,151.75,128.42178295]
[1746690726601,6.58642258,151.83,151.81,7.33576372]
[1746690726906,8.16180912,151.84,151.82,7.33576372]
[1746690728077,8.16180912,151.84,151.82,2.3927162]
[1746690728078,6.58600912,151.84,151.82,2.3927162]
[1746690729705,6.58544616,151.85,151.82,11.45843349]
[1746690731191,6.58544616,151.85,151.81,32.77843349]
[1746690732002,18.04387965,151.85,151.81,21.32]
[1746690732203,11.45843349,151.83,151.81,21.32]
[1746690733300,13.10233349,151.82,151.81,21.32]
[1746690733707,13.10233349,151.82,151.81,14.72872078]
[1746690734114,19.68908095,151.82,151.81,14.72872078]
[1746690734610,19.68908095,151.82,151.81,11.43277886]
[1746690736308,19.68908095,151.82,151.75,11.45843349]
[1746690736309,8.23064746,151.82,151.77,21.04]
[1746690736493,8.23064746,151.82,151.78,11.45843349]
[1746690736494,19.68908095,151.82,151.78,11.45843349]
[1746690738291,11.45843349,151.81,151.77,21.04]
[1746690738818,11.45843349,151.8,151.77,21.04]
[1746690739693,4.92106455,151.79,151.77,21.04]
[1746690740713,4.92106455,151.78,151.77,21.04]
[1746690741412,4.92106455,151.78,151.77,47.04]
[1746690741789,4.92106455,151.78,151.77,58.49843349]
[1746690742102,4.92106455,151.78,151.77,65.08735093]
[1746690743118,4.92106455,151.78,151.77,83.73699979]
[1746690745617,4.92106455,151.78,151.77,78.79430601]
[1746690748623,4.92106455,151.78,151.77,67.33587252]
[1746690748804,4.92106455,151.78,151.77,60.14465715]
[1746690749905,4.92106455,151.78,151.77,56.84934244]
[1746690750099,4.92106455,151.78,151.77,19.39090895]
[1746690751509,4.92106455,151.78,151.77,30.84934244]
[1746690751825,4.92106455,151.78,151.77,19.39090895]
[1746690752216,4.92106455,151.78,151.77,30.84934244]
[1746690752427,4.92106455,151.78,151.77,19.39090895]
[1746690752619,4.92106455,151.78,151.77,30.84934244]
[1746690753023,4.92106455,151.78,151.77,19.39090895]
[1746690754218,4.92106455,151.78,151.77,30.84934244]
[1746690754532,4.92106455,151.78,151.77,19.39090895]
[1746690754830,4.92106455,151.78,151.77,30.84934244]
[1746690755927,4.92106455,151.78,151.77,25.90613864]
[1746690756415,4.92106455,151.78,151.77,14.44770515]
[1746690757021,4.92106455,151.78,151.77,7.85878771]
[1746690760409,4.92106455,151.78,151.77,19.3172212]
[1746690761623,4.92106455,151.78,151.77,19.31393273]
[1746690762324,4.92106455,151.78,151.77,7.85549924]
[1746690762511,4.92106455,151.78,151.77,19.31393273]
[1746690763533,144.75143177,151.84,151.77,45.31393273]